bitfinex-derivatives/quotes_BTCF0:USTF0_20250911
["timestamp","ask_amount","ask_price","bid_price","bid_amount"]
[1757594261134,0.3608,114030.0,114020.0,0.02468]
[1757594261635,0.3608,114030.0,114020.0,0.10334271]
[1757594262238,0.3608,114030.0,114020.0,0.02468]
[1757594262636,0.3608,114030.0,114020.0,0.10334271]
[1757594262835,0.3608,114040.0,114030.0,0.02468]
[1757594263035,0.3608,114040.0,114030.0,0.10334271]
[1757594264130,0.3608,114040.0,114030.0,0.07866271]
[1757594264334,0.6108,114040.0,114030.0,0.07866271]
[1757594264540,0.6108,114040.0,114030.0,0.10334271]
[1757594265035,0.61086535,114040.0,114030.0,0.10334271]
[1757594265243,0.6108727,114040.0,114030.0,0.10334271]
[1757594265435,0.61086438,114040.0,114030.0,0.02468]
[1757594265736,0.6108,114040.0,114020.0,0.10334271]
[1757594265934,0.3608,114040.0,114020.0,0.10334271]
[1757594266136,0.3608,114040.0,114030.0,0.07866271]
[1757594266343,0.3608,114040.0,114030.0,0.10334271]
[1757594266732,0.40029,114040.0,114030.0,0.14525271]
[1757594266938,0.40029,114040.0,114020.0,0.10334271]
[1757594267139,0.3608,114040.0,114020.0,0.14525271]
[1757594267542,0.40029,114040.0,114030.0,0.06659]
[1757594267740,0.40029,114040.0,114030.0,0.04191]
[1757594268137,0.40029,114040.0,114020.0,0.07866271]
[1757594268138,0.66651,114040.0,114020.0,0.07866271]
[1757594268446,0.01622,114020.0,114010.0,0.07866271]
[1757594268637,0.37702,114020.0,114010.0,0.07866271]
[1757594268840,0.62702,114020.0,114000.0,0.07866271]
[1757594269044,0.3608,114010.0,114000.0,0.07866271]
[1757594269544,0.3608,114010.0,114000.0,0.10334271]
[1757594269743,0.3608,114010.0,114000.0,0.07850449]
[1757594270341,0.6108,114010.0,114000.0,0.07850449]
[1757594270540,0.62424,114010.0,114000.0,0.07850449]
[1757594270745,0.6108,114010.0,114000.0,0.07850449]
[1757594270948,0.3608,114010.0,114000.0,0.07850449]
[1757594271247,0.3608,114030.0,114020.0,0.02254]
[1757594271635,0.3608,114030.0,114020.0,0.10104449]
[1757594272241,0.3608,114040.0,114030.0,0.02254]
[1757594272442,0.3608,114040.0,114030.0,0.09204449]
[1757594273135,0.3608727,114040.0,114030.0,0.09204449]
[1757594273334,6.675e-05,114040.0,114030.0,0.09204449]
[1757594273536,7.27e-05,114040.0,114030.0,0.01354]
[1757594273739,0.3608,114050.0,114030.0,0.01354]
[1757594273942,0.38529,114050.0,114040.0,0.07859293]
[1757594274245,0.38529,114050.0,114030.0,0.07859293]
[1757594274444,0.3608,114040.0,114030.0,0.07859293]
[1757594274646,0.3618,114040.0,114030.0,0.07859293]
[1757594275147,0.3608,114040.0,114030.0,0.07859293]
[1757594275842,0.38453,114040.0,114030.0,0.07859293]
[1757594276042,0.63453,114040.0,114030.0,0.07859293]
[1757594276449,0.01413,114030.0,114020.0,0.07859293]
[1757594276638,0.37493,114030.0,114020.0,0.07859293]
[1757594277246,0.37493,114030.0,114010.0,0.11029306]
[1757594277452,0.3608,114020.0,114010.0,0.11029306]
[1757594277838,0.3608,114020.0,114010.0,0.13283306]
[1757594278038,7.27e-05,114020.0,114010.0,0.61823136]
[1757594278243,0.3608,114030.0,114020.0,0.02654]
[1757594278546,0.3608,114030.0,114020.0,0.10520209]
[1757594278750,0.38253,114030.0,114020.0,0.004]
[1757594278947,0.3608,114030.0,114020.0,0.004]
[1757594279151,0.3608,114030.0,114010.0,0.59569136]
[1757594279346,0.3608,114030.0,114020.0,0.02254]
[1757594279546,0.3608,114050.0,114030.0,0.02254]
[1757594279748,0.3608,114040.0,114030.0,0.02254]
[1757594279950,0.3608,114040.0,114020.0,0.13283306]
[1757594280150,0.3608,114030.0,114020.0,0.13283306]
[1757594280450,0.3608,114030.0,114020.0,0.11011944]
[1757594280843,0.37493,114030.0,114020.0,0.11011944]
[1757594281247,0.001,114030.0,114020.0,0.49345944]
[1757594281447,0.001,114030.0,114020.0,0.58661269]
[1757594281645,0.001,114030.0,114020.0,0.83661269]
[1757594281843,0.37424,114060.0,114030.0,0.02254]
[1757594282039,0.37424,114060.0,114050.0,0.06292302]
[1757594282442,0.3608,114060.0,114050.0,0.06292302]
[1757594282646,0.3608,114060.0,114050.0,0.07867439]
[1757594283545,0.37424,114060.0,114050.0,0.07867439]
[1757594283746,0.3608,114060.0,114050.0,0.07867439]
[1757594283946,0.3608,114060.0,114040.0,0.57213383]
[1757594284151,7.27e-05,114060.0,114050.0,0.5484683]
[1757594284348,0.0177149,114070.0,114060.0,0.06307]
[1757594284349,0.4167149,114070.0,114060.0,0.06307]
[1757594284651,0.0559149,114070.0,114060.0,0.06307]
[1757594284850,0.0559149,114070.0,114060.0,0.16918944]
[1757594285240,0.0559149,114070.0,114060.0,0.05907]
[1757594285441,0.0177149,114070.0,114060.0,0.05907]
[1757594285644,0.0177149,114070.0,114060.0,0.16918944]
[1757594285945,0.0559149,114070.0,114060.0,0.16918944]
[1757594286645,0.4227149,114070.0,114060.0,0.16918944]
[1757594287047,0.0237149,114070.0,114060.0,0.16918944]
[1757594287951,0.0237149,114070.0,114060.0,0.52998944]
[1757594288158,0.0177149,114070.0,114060.0,0.52998944]
[1757594288354,0.0187149,114070.0,114060.0,0.52998944]
[1757594288658,0.0187149,114070.0,114060.0,1.05998944]
[1757594288851,0.0187149,114070.0,114060.0,0.52998944]
[1757594289051,0.0187149,114070.0,114060.0,1.49458774]
[1757594289455,0.0187149,114070.0,114060.0,1.36998944]
[1757594289652,0.0187149,114070.0,114060.0,1.46764324]
[1757594289947,0.399,114100.0,114090.0,0.06307]
[1757594290147,0.399,114100.0,114090.0,0.07847295]
[1757594290359,0.399,114100.0,114080.0,0.46181295]
[1757594290549,7.27e-05,114090.0,114080.0,0.50234295]
[1757594290855,0.42349,114090.0,114070.0,0.49345944]
[1757594291050,0.42349,114090.0,114080.0,0.18855035]
[1757594291451,0.67349,114090.0,114080.0,0.07843091]
[1757594291654,0.67349,114090.0,114080.0,0.06271686]
[1757594292165,0.67349,114090.0,114080.0,0.06271258]
[1757594292458,0.67031,114090.0,114080.0,0.06271258]
[1757594292652,0.67131,114090.0,114080.0,0.07171258]
[1757594292853,0.67431,114090.0,114080.0,0.07171258]
[1757594293453,0.67331,114090.0,114080.0,0.06271258]
[1757594293655,0.05951,114080.0,114070.0,0.06271258]
[1757594293854,0.42031,114080.0,114070.0,0.06271258]
[1757594294055,0.67031,114080.0,114070.0,0.06271258]
[1757594294762,0.67031,114080.0,114070.0,0.07147258]
[1757594295158,0.67031,114080.0,114060.0,0.06271258]
[1757594295159,0.649,114080.0,114060.0,0.06271258]
[1757594295455,0.412,114080.0,114070.0,0.06271258]
[1757594295660,0.414,114080.0,114070.0,0.06271258]
[1757594295850,0.664,114080.0,114070.0,0.06271258]
[1757594296056,0.0512,114070.0,114060.0,0.06271258]
[1757594296263,0.412,114070.0,114060.0,0.06271258]
[1757594297161,0.412,114070.0,114060.0,0.06471258]
[1757594298060,0.399,114070.0,114060.0,0.06471258]
[1757594298360,0.002,114080.0,114060.0,0.39542063]
[1757594298555,0.0402,114080.0,114070.0,0.48658258]
[1757594298752,0.0402,114080.0,114070.0,0.04053]
[1757594298961,0.0402,114080.0,114060.0,0.38534]
[1757594299163,0.0392,114070.0,114060.0,0.62889921]
[1757594299362,0.0392,114070.0,114060.0,0.50430091]
[1757594299663,0.38253,114100.0,114060.0,0.87889921]
[1757594299961,0.0382,114090.0,114080.0,0.06268527]
[1757594300263,0.0382,114090.0,114080.0,0.10321527]
[1757594300463,0.0382,114090.0,114080.0,0.04053]
[1757594300657,0.0382,114090.0,114080.0,0.07843091]
[1757594300658,0.3990727,114090.0,114080.0,0.07843091]
[1757594300858,0.0382,114090.0,114080.0,0.06307]
[1757594301066,0.399,114090.0,114070.0,0.58636921]
[1757594301266,0.3608,114090.0,114070.0,0.62689921]
[1757594301463,0.03851,114080.0,114070.0,0.50230091]
[1757594301769,0.03851,114080.0,114070.0,0.14146865]
[1757594302062,7.27e-05,114080.0,114070.0,0.50226865]
[1757594302270,6.619e-05,114080.0,114070.0,0.1876683]
[1757594302459,0.3628,114090.0,114070.0,0.26607246]
[1757594302770,0.03851,114080.0,114070.0,0.14147416]
[1757594302955,0.3628,114090.0,114070.0,0.1876683]
[1757594303167,0.40131,114090.0,114080.0,0.10026393]
[1757594303359,0.39931,114090.0,114080.0,0.10026393]
[1757594304168,0.40131,114090.0,114080.0,0.12358393]
[1757594304566,0.67144,114090.0,114080.0,0.06272393]
[1757594305569,0.66944,114090.0,114080.0,0.06272393]
[1757594305871,0.67144,114090.0,114070.0,0.07148393]
[1757594306170,0.41231,114080.0,114070.0,0.00876]
[1757594306370,0.41231,114080.0,114070.0,0.08716416]
[1757594307168,0.39931,114080.0,114070.0,0.08716416]
[1757594307464,0.3608,114080.0,114070.0,0.14802416]
[1757594307667,0.39931,114080.0,114070.0,0.08716416]
[1757594307863,0.41944,114080.0,114070.0,0.08716416]
[1757594308970,0.42044,114080.0,114070.0,0.08716416]
[1757594309172,0.42044,114080.0,114070.0,0.08816416]
[1757594309771,0.42044,114080.0,114070.0,0.00976]
[1757594310166,0.42044,114080.0,114070.0,0.08816416]
[1757594311074,0.67044,114080.0,114070.0,0.15106679]
[1757594311268,0.67044,114080.0,114070.0,0.00976]
[1757594311475,0.67044,114080.0,114070.0,0.07267735]
[1757594313181,0.67044,114080.0,114070.0,0.00976]
[1757594313571,0.67044,114080.0,114070.0,0.07270174]
[1757594314174,0.67044,114080.0,114070.0,0.00972]
[1757594314371,0.67044,114080.0,114070.0,0.07267605]
[1757594314674,0.68791534,114080.0,114060.0,0.07840416]
[1757594314876,0.3608,114070.0,114060.0,0.07840416]
[1757594315878,0.3608,114070.0,114050.0,0.07840416]
[1757594316078,0.3608,114070.0,114040.0,0.13343944]
[1757594316079,0.3608,114060.0,114040.0,0.13343944]
[1757594316279,0.3608,114060.0,114050.0,0.07867981]
[1757594316475,0.7216,114060.0,114050.0,0.07867981]
[1757594317077,0.73051796,114060.0,114050.0,0.002]
[1757594317582,0.98051796,114060.0,114050.0,0.002]
[1757594317777,0.98051796,114060.0,114030.0,0.18879925]
[1757594317778,1.10511626,114060.0,114030.0,0.18879925]
[1757594317981,0.3608,114040.0,114020.0,0.10199981]
[1757594318187,0.3608,114030.0,114020.0,0.10199981]
[1757594318375,0.3608,114030.0,114020.0,0.13953981]
[1757594318577,0.3608,114030.0,114020.0,0.38953981]
[1757594318876,0.3608,114050.0,114040.0,0.02332]
[1757594319083,0.3608,114050.0,114040.0,0.06086]
[1757594319485,0.3608,114050.0,114040.0,0.02332]
[1757594319880,0.3608,114050.0,114030.0,0.06086]
[1757594320078,0.3608,114040.0,114030.0,0.13953981]
[1757594320581,0.3608,114040.0,114030.0,0.06086]
[1757594320776,0.3608,114040.0,114030.0,0.02332]
[1757594320974,0.7353983,114040.0,114020.0,0.07867981]
[1757594321178,0.3608,114030.0,114020.0,0.18879925]
[1757594321379,0.3608,114030.0,114020.0,0.11011944]
[1757594321673,0.3608,114030.0,114010.0,0.16011189]
[1757594321872,0.3608,114020.0,114010.0,0.16011189]
[1757594322285,0.3608,114020.0,114010.0,0.12257189]
[1757594322480,0.3608,114020.0,114010.0,0.07867981]
[1757594322876,0.3608,114020.0,114000.0,0.10199981]
[1757594323077,0.3608,114010.0,114000.0,0.07867981]
[1757594323277,0.3608,114010.0,113990.0,0.23291432]
[1757594323477,0.3608,114000.0,113990.0,0.23291432]
[1757594323677,0.3608,114000.0,113990.0,0.16033488]
[1757594323875,0.3608,114000.0,113990.0,0.28493318]
[1757594324081,0.3608,114010.0,113990.0,0.90475917]
[1757594324287,0.3608,114010.0,114000.0,0.06086]
[1757594324677,0.3608,114010.0,114000.0,0.06586]
[1757594324883,0.3608,114030.0,114020.0,0.02332]
[1757594325086,0.3608,114030.0,114020.0,0.12361182]
[1757594325280,2.12888,114040.0,114030.0,0.02332]
[1757594325579,2.12888,114040.0,114030.0,0.24818449]
[1757594325884,1.76808,114040.0,114030.0,0.06086]
[1757594326277,2.12888,114040.0,114030.0,0.06086]
[1757594327085,0.37823673,114050.0,114040.0,0.02332]
[1757594327278,0.37823673,114050.0,114040.0,0.24818449]
[1757594327776,0.01743673,114050.0,114040.0,0.24818449]
[1757594327977,0.01743673,114050.0,114040.0,0.7962583]
[1757594328177,0.01743673,114050.0,114040.0,0.87493811]
[1757594328380,0.37859481,114070.0,114040.0,0.83800481]
[1757594328684,0.01779481,114070.0,114060.0,0.08598639]
[1757594328884,0.01779481,114070.0,114060.0,0.08598354]
[1757594328885,0.37859481,114070.0,114060.0,0.08598354]
[1757594329187,0.37859481,114070.0,114060.0,0.08590354]
[1757594329780,0.62859481,114070.0,114060.0,0.08590354]
[1757594329985,0.62859481,114070.0,114050.0,0.08598354]
[1757594330285,0.3608727,114060.0,114050.0,0.1016516]
[1757594330474,0.3608,114060.0,114050.0,0.0783316]
[1757594330682,0.3608,114060.0,114050.0,0.06270397]
[1757594332186,0.6108,114060.0,114050.0,0.06270397]
[1757594333585,0.3608,114060.0,114050.0,0.08597397]
[1757594334087,0.3608,114060.0,114050.0,0.12601397]
[1757594334476,0.3608,114060.0,114050.0,0.08597397]
[1757594334787,0.6108,114060.0,114050.0,0.06370397]
[1757594334981,0.6108,114060.0,114050.0,0.001]
[1757594335176,0.61086765,114060.0,114050.0,0.06270397]
[1757594335382,0.6108,114060.0,114040.0,0.06270397]
[1757594335587,0.3608,114050.0,114040.0,0.06270397]
[1757594335783,0.6108,114050.0,114040.0,0.06270397]
[1757594336090,0.6108,114050.0,114030.0,0.06270397]
[1757594336284,0.3608,114040.0,114030.0,0.06270397]
[1757594336481,0.3608,114040.0,114030.0,0.08497397]
[1757594336678,0.3608,114040.0,114030.0,0.06270397]
[1757594337089,0.6108,114040.0,114030.0,0.06270397]
[1757594337280,0.6108,114040.0,114030.0,0.06370397]
[1757594337482,0.6108,114040.0,114030.0,0.06670397]
[1757594337794,0.6108,114040.0,114030.0,0.004]
[1757594337986,0.67940795,114040.0,114030.0,0.004]
[1757594338186,0.3608,114040.0,114030.0,0.02627]
[1757594338480,0.3608,114040.0,114030.0,0.3546016]
[1757594338888,0.3608,114040.0,114030.0,0.27527]
[1757594339089,0.3608,114040.0,114030.0,0.3556016]
[1757594339392,0.3608,114050.0,114040.0,0.02227]
[1757594339987,0.3608,114050.0,114040.0,0.08511723]
[1757594340188,0.3608,114050.0,114040.0,0.02227]
[1757594340698,0.3608,114050.0,114040.0,0.02427]
[1757594341086,0.3608,114060.0,114040.0,0.06431]
[1757594341281,0.3608,114060.0,114050.0,0.06286076]
[1757594341494,0.3608,114060.0,114050.0,0.06286501]
[1757594341886,0.3608,114060.0,114050.0,0.08513501]
[1757594342086,0.3608,114060.0,114050.0,0.06286501]
[1757594342285,0.6108,114060.0,114050.0,0.06286501]
[1757594342485,0.6108727,114060.0,114050.0,0.06286501]
[1757594342691,0.6108,114060.0,114050.0,0.06286501]
[1757594342996,0.73534518,114060.0,114040.0,0.06386501]
[1757594343196,0.3608,114050.0,114040.0,0.00293501]
[1757594343386,0.3608,114050.0,114030.0,0.0783316]
[1757594343588,0.3608,114040.0,114020.0,0.21948104]
[1757594343788,0.3608,114030.0,114020.0,0.1093616]
[1757594344093,0.3608,114030.0,114020.0,0.00876]
[1757594344892,0.39268694,114030.0,114020.0,0.00876]
[1757594345293,2.41104694,114030.0,114000.0,0.1006016]
[1757594345499,0.3608,114010.0,114000.0,0.02227]
[1757594345793,0.3608,114010.0,113990.0,0.12139667]
[1757594345990,0.3608,114000.0,113990.0,0.12139667]
[1757594346187,0.3608,114000.0,113990.0,0.09912667]
[1757594346387,0.3608,114000.0,113990.0,0.04306507]
[1757594346988,0.39268694,114000.0,113990.0,0.04306507]
[1757594347187,0.39268694,114000.0,113990.0,0.04406507]
[1757594347391,0.39268694,114000.0,113990.0,0.04506507]
[1757594347587,0.39268694,114000.0,113990.0,0.02279507]
[1757594347787,0.64275964,114000.0,113990.0,0.02279507]
[1757594348004,0.64268694,114000.0,113970.0,0.1006016]
[1757594348200,0.7216,113980.0,113970.0,0.1006016]
[1757594348502,0.7216,113980.0,113970.0,0.02227]
[1757594348899,0.75348694,113980.0,113970.0,0.02227]
[1757594349495,0.39268694,113980.0,113970.0,0.06531]
[1757594349698,0.03188694,113980.0,113970.0,0.06531]
[1757594350004,0.03188694,113980.0,113970.0,0.06631]
[1757594350210,0.39268694,113980.0,113970.0,0.02627]
[1757594350399,0.76723212,113980.0,113940.0,0.13238944]
[1757594350596,0.12454518,113960.0,113940.0,0.02227]
[1757594350800,1.5,113950.0,113940.0,0.02227]
[1757594350995,1.60059821,113950.0,113930.0,0.02227]
[1757594351299,1.60059821,113950.0,113940.0,0.02227]
[1757594351504,2.32219821,113950.0,113940.0,0.02227]
[1757594352097,0.82219821,113950.0,113940.0,0.02227]
[1757594352499,0.75348694,113950.0,113940.0,0.27227]
[1757594353101,0.39268694,113950.0,113940.0,0.27227]
[1757594353402,0.03288694,113950.0,113940.0,0.63307]
[1757594353597,0.03388694,113950.0,113940.0,0.63307]
[1757594354197,0.03388694,113950.0,113940.0,0.27327]
[1757594354198,0.39368694,113950.0,113940.0,0.27327]
[1757594354399,0.39368694,113950.0,113940.0,0.02327]
[1757594355502,0.39375964,113950.0,113940.0,0.02327]
[1757594355715,0.39368694,113950.0,113940.0,0.02227]
[1757594355910,0.39368694,113950.0,113940.0,0.02527]
[1757594356306,0.03188694,113950.0,113940.0,0.27527]
[1757594356513,0.03288694,113950.0,113940.0,0.63307]
[1757594356706,0.03288694,113950.0,113940.0,0.75861518]
[1757594357207,0.03288694,113950.0,113940.0,0.63407]
[1757594358207,0.03288694,113950.0,113940.0,0.38407]
[1757594358899,0.03288694,113950.0,113940.0,0.38307]
[1757594359210,0.03188694,113950.0,113940.0,0.42511]
[1757594359412,0.39268694,113950.0,113940.0,0.02427]
[1757594360097,0.39275964,113950.0,113940.0,0.02427]
[1757594360301,0.39268694,113950.0,113940.0,0.02427]
[1757594360706,0.39274991,113950.0,113940.0,0.02427]
[1757594360919,0.39268694,113950.0,113940.0,0.02427]
[1757594363309,0.39268694,113950.0,113940.0,0.06431]
[1757594366406,0.03188694,113950.0,113940.0,0.06431]
[1757594366809,0.03188694,113950.0,113940.0,0.31431]
[1757594367110,0.03188694,113950.0,113940.0,0.67511]
[1757594367307,0.03188694,113950.0,113940.0,0.7628517]
[1757594367511,0.03188694,113950.0,113940.0,1.14511]
[1757594367711,0.03188694,113950.0,113940.0,0.54965518]
[1757594367909,0.03188694,113950.0,113940.0,0.42511]
[1757594368117,0.03188694,113950.0,113940.0,0.06431]
[1757594368825,0.03188694,113950.0,113940.0,0.42511]
[1757594369214,0.03188694,113950.0,113940.0,0.79965518]
[1757594369720,0.03188694,113950.0,113940.0,1.27965518]
[1757594369916,0.03188694,113950.0,113940.0,0.79965518]
[1757594370412,0.03188694,113950.0,113940.0,1.24965518]
[1757594370612,0.03188694,113950.0,113940.0,0.79965518]
[1757594371412,0.03188694,113950.0,113940.0,0.67511]
[1757594372013,0.03188694,113950.0,113940.0,0.06431]
[1757594372710,0.03188694,113950.0,113940.0,0.54965518]
[1757594372911,0.03188694,113950.0,113940.0,0.79965518]
[1757594373109,0.03188694,113950.0,113940.0,0.88739668]
[1757594373305,0.3608,113980.0,113960.0,0.06266]
[1757594373509,0.3608,113980.0,113970.0,0.06266]
[1757594373917,0.37859569,113990.0,113980.0,0.06266]
[1757594375110,0.37859569,113990.0,113980.0,0.02411]
[1757594375510,0.38059569,113990.0,113980.0,0.02411]
[1757594376319,0.38059569,113990.0,113980.0,0.02511]
[1757594377315,0.38059569,113990.0,113980.0,0.06366]
[1757594378012,0.38066839,113990.0,113980.0,0.06366]
[1757594378412,0.37959569,113990.0,113980.0,0.06366]
[1757594378618,0.37966509,113990.0,113980.0,0.06366]
[1757594378915,0.37959569,113990.0,113980.0,0.06366]
[1757594379628,0.37959569,113990.0,113980.0,0.02511]
[1757594380420,0.62959569,113990.0,113980.0,0.02511]
[1757594382913,0.37959569,113990.0,113980.0,0.02511]
[1757594383714,0.37959569,113990.0,113980.0,0.06366]
[1757594384323,0.37966839,113990.0,113980.0,0.06366]
[1757594385025,0.37959569,113990.0,113980.0,0.02511]
[1757594385522,0.37966839,113990.0,113980.0,0.02511]
[1757594386115,0.37966839,113990.0,113980.0,0.06366]
[1757594386316,0.37959569,113990.0,113980.0,0.06366]
[1757594386918,0.3796642,113990.0,113980.0,0.02511]
[1757594387119,0.37959569,113990.0,113980.0,0.02511]
[1757594387320,0.37966839,113990.0,113980.0,0.02511]
[1757594387623,0.37959569,113990.0,113980.0,0.02511]
[1757594388626,0.37966839,113990.0,113980.0,0.02511]
[1757594388827,0.37959569,113990.0,113980.0,0.02511]
[1757594390721,0.62959569,113990.0,113980.0,0.02511]
[1757594391620,0.37959569,113990.0,113980.0,0.06366]
[1757594392024,0.37959569,113990.0,113980.0,0.02511]
[1757594392228,0.37959569,113990.0,113980.0,0.08806158]
[1757594393116,0.37959569,113990.0,113980.0,0.02511]
[1757594393320,0.37959569,113990.0,113980.0,0.08806158]
[1757594393827,0.62959569,113990.0,113980.0,0.08806158]
[1757594394429,0.75432892,113990.0,113980.0,0.08806158]
[1757594395128,0.75432892,113990.0,113970.0,0.08295819]
[1757594395323,0.3608,113980.0,113970.0,0.08295819]
[1757594395625,0.3608,113980.0,113970.0,0.02000661]
[1757594396426,0.3608,113980.0,113970.0,0.08295819]
[1757594397028,0.3608,113980.0,113970.0,0.08395819]
[1757594397428,0.3608727,113980.0,113970.0,0.12312819]
[1757594397627,0.3608,113980.0,113970.0,0.06017661]
[1757594397817,0.3608,113980.0,113970.0,0.1001132]
[1757594399226,0.3608,113980.0,113970.0,0.02200661]
[1757594399428,0.3608,113980.0,113970.0,0.1001132]
[1757594399934,0.3608,113980.0,113970.0,0.1392832]
[1757594400329,0.3608,113980.0,113970.0,0.06117661]
[1757594400525,0.3608,113980.0,113970.0,0.1392832]
[1757594400731,0.3608,113980.0,113970.0,0.3892832]
[1757594401331,6.282e-05,113980.0,113970.0,0.3892832]
[1757594401534,0.37859569,113990.0,113980.0,0.02183]
[1757594401535,0.3608,113990.0,113980.0,0.02183]
[1757594401735,0.7216,113990.0,113980.0,0.02183]
[1757594402040,0.9716,113990.0,113980.0,0.02183]
[1757594402235,0.9716,113990.0,113980.0,0.08489487]
[1757594402428,0.9716,113990.0,113980.0,0.06306487]
[1757594402838,1.09733323,113990.0,113980.0,0.06306487]
[1757594403324,1.09733323,113990.0,113970.0,0.08307148]
[1757594403530,0.48553323,113980.0,113970.0,0.08307148]
[1757594403932,0.73560098,113980.0,113970.0,0.06306487]
[1757594404125,0.73560593,113980.0,113960.0,0.06306487]
[1757594404324,0.73560593,113980.0,113950.0,0.08717487]
[1757594404325,0.3608727,113970.0,113950.0,0.08717487]
[1757594404532,0.48553323,113960.0,113950.0,0.08717487]
[1757594405333,2.50501323,113960.0,113950.0,0.08717487]
[1757594405530,2.50501323,113960.0,113940.0,0.08489487]
[1757594405736,0.3608,113950.0,113940.0,0.08489487]
[1757594405936,0.3608,113950.0,113940.0,0.08902487]
[1757594406738,0.3608,113950.0,113940.0,0.02596]
[1757594407941,0.55596401,113950.0,113940.0,0.02696]
[1757594408447,0.55696401,113950.0,113940.0,0.02696]
[1757594408643,0.68223078,113950.0,113940.0,0.02696]
[1757594408943,0.80696401,113950.0,113940.0,0.02696]
[1757594409749,0.68223078,113950.0,113940.0,0.02696]
[1757594409946,0.80696401,113950.0,113940.0,0.02696]
[1757594410742,0.43223078,113950.0,113940.0,0.02696]
[1757594412140,0.43223078,113950.0,113940.0,0.31613]
[1757594412336,0.43223078,113950.0,113940.0,0.27696]
[1757594413248,0.43230348,113950.0,113940.0,0.27696]
[1757594413446,0.43223078,113950.0,113940.0,0.31613]
[1757594413650,0.43230348,113950.0,113940.0,0.31613]
[1757594413946,0.001,113950.0,113940.0,0.67693]
[1757594414150,0.001,113950.0,113940.0,0.39423659]
[1757594414448,0.001,113950.0,113940.0,0.14423659]
[1757594414651,0.3618,113950.0,113940.0,0.02696]
[1757594414847,0.3618,113950.0,113940.0,0.08978201]
[1757594415843,0.3618,113950.0,113940.0,0.12895201]
[1757594416055,0.3618,113950.0,113940.0,0.37895201]
[1757594416754,0.3618,113950.0,113940.0,0.31613]
[1757594416953,0.3618,113950.0,113940.0,0.37896653]
[1757594417558,0.3618,113950.0,113940.0,0.33979653]
[1757594417854,0.3618,113950.0,113940.0,0.37896653]
[1757594419046,0.6118,113950.0,113940.0,0.08979653]
[1757594419249,0.6118,113950.0,113940.0,0.02696]
[1757594419648,0.73653323,113950.0,113940.0,0.02696]
[1757594420755,0.3618,113950.0,113940.0,0.06613]
[1757594421060,0.3618,113950.0,113940.0,0.02696]
[1757594421553,0.3618,113950.0,113940.0,0.06613]
[1757594421956,0.3618,113950.0,113940.0,0.02696]
[1757594422459,0.3618727,113950.0,113940.0,0.02696]
[1757594422659,0.3618,113950.0,113940.0,0.02696]
[1757594423361,0.3618,113950.0,113940.0,0.08979653]
[1757594423762,0.3618,113950.0,113940.0,0.02696]
[1757594426453,0.3618,113950.0,113940.0,0.08979653]
[1757594427150,0.3618,113950.0,113940.0,0.37741653]
[1757594427356,0.3618,113950.0,113940.0,0.51741982]
[1757594427357,0.001,113950.0,113940.0,0.51741982]
[1757594427558,0.3618,113950.0,113940.0,0.39268659]
[1757594429964,0.3618,113950.0,113940.0,0.31458]
[1757594430162,0.3618,113950.0,113940.0,0.02696]
[1757594430363,0.3618,113950.0,113940.0,0.10567866]
[1757594430670,0.3618,113950.0,113940.0,0.08994453]
[1757594431164,0.3618,113950.0,113940.0,0.02696]
[1757594431462,0.3618,113950.0,113940.0,0.08997304]
[1757594431668,0.6118,113950.0,113940.0,0.08997304]
[1757594432162,0.6118,113950.0,113940.0,0.02696]
[1757594432364,0.6118,113950.0,113940.0,0.0900046]
[1757594432558,0.6118,113950.0,113940.0,0.02696]
[1757594432863,0.6118,113950.0,113940.0,0.09000478]
[1757594433067,0.6118,113950.0,113940.0,0.02696]
[1757594433266,0.3618,113950.0,113940.0,0.02696]
[1757594433567,0.3618,113950.0,113940.0,0.37763866]
[1757594434762,0.3618,113950.0,113940.0,0.31458]
[1757594434961,0.3618,113950.0,113940.0,0.39329866]
[1757594435166,0.001,113950.0,113940.0,0.51803189]
[1757594435366,0.001,113950.0,113940.0,0.43931323]
[1757594435666,0.3618,113950.0,113940.0,0.17469944]
[1757594435966,0.3618,113950.0,113940.0,0.06458]
[1757594436167,0.3618,113950.0,113940.0,0.02696]
[1757594436364,0.3618,113950.0,113940.0,0.13707944]
[1757594436867,0.3618,113950.0,113940.0,0.06458]
[1757594437071,0.001,113950.0,113940.0,0.06458]
[1757594438367,0.001,113950.0,113940.0,0.17469944]
[1757594438672,0.3618,113950.0,113940.0,0.17469944]
[1757594438871,0.001,113950.0,113940.0,0.17469944]
[1757594439069,0.001,113950.0,113940.0,0.42469944]
[1757594439266,0.001,113950.0,113940.0,0.17469944]
[1757594440368,0.001,113950.0,113940.0,0.54943267]
[1757594440667,0.001,113950.0,113940.0,0.91023267]
[1757594440871,0.001,113950.0,113940.0,0.80011323]
[1757594441260,0.37841086,113970.0,113960.0,0.05988]
[1757594441461,0.37841086,113970.0,113960.0,0.1386833]
[1757594442273,0.3608,113970.0,113960.0,0.1386833]
[1757594442471,0.3628,113970.0,113960.0,0.1386833]
[1757594442674,0.3628,113970.0,113960.0,0.13867177]
[1757594442974,0.002,113970.0,113960.0,0.67945]
[1757594443372,0.004,113970.0,113960.0,0.67945]
[1757594443875,0.002,113970.0,113960.0,0.67945]
[1757594444178,0.002,113970.0,113960.0,0.78970717]
[1757594444671,0.002,113970.0,113960.0,0.67945]
[1757594445078,0.002,113970.0,113960.0,0.80418323]
[1757594445375,2.14880239,113990.0,113980.0,0.05988]
[1757594445678,2.50960239,113990.0,113980.0,0.02226]
[1757594446373,2.50960239,113990.0,113980.0,0.05988]
[1757594446581,2.50960239,113990.0,113980.0,0.1385624]
[1757594446972,2.51160239,113990.0,113980.0,0.1385624]
[1757594447277,2.51160239,113990.0,113980.0,0.05988]
[1757594447871,2.51360239,113990.0,113980.0,0.05988]
[1757594448389,2.51260239,113990.0,113980.0,0.12276995]
[1757594448571,2.51160239,113990.0,113980.0,0.12276995]
[1757594448873,2.15087509,113990.0,113980.0,0.05988]
[1757594449179,2.15080239,113990.0,113980.0,0.30988]
[1757594449373,2.15080239,113990.0,113980.0,0.3885624]
[1757594449573,2.15080239,113990.0,113980.0,0.30988]
[1757594450179,2.15080239,113990.0,113980.0,0.38845912]
[1757594450380,2.13168,113990.0,113980.0,0.38845912]